fUSD/lending_fUSD_20260511
["ID","MTS","AMOUNT","RATE_DAILY","PERIOD"]
[421998105,1778436634000,-17008.40361111,0.00013497,2]
[421998142,1778436634000,-500.0,0.00013698,2]
[421998141,1778436634000,-284.83695705,0.00013698,2]
[421998165,1778436634000,-608.80619895,0.00014237,2]
[421998163,1778436634000,-14291.55967033,0.00014237,2]
[421998160,1778436634000,-500.0,0.00014236,2]
[421998164,1778436634000,-405.87183567,0.00014237,2]
[421998162,1778436634000,-393.86606881,0.00014236,2]
[421998159,1778436634000,-500.0,0.00014236,2]
[421998155,1778436634000,-500.0,0.00014136,2]
[421998154,1778436634000,-500.0,0.00014136,2]
[421998156,1778436634000,-637.83327204,0.00014136,2]
[421998157,1778436634000,-1369.33321286,0.00014141,2]
[421998158,1778436634000,-187.99141881,0.00014236,2]
[421998161,1778436634000,-556.57894164,0.00014236,2]
[421998153,1778436634000,-500.0,0.00014136,2]
[421998149,1778436634000,-818.43,0.00013975,2]
[421998151,1778436634000,-360.34,0.00014105,2]
[421998150,1778436634000,-202.1297524,0.0001399,2]
[421998148,1778436634000,-495.62268588,0.00013927,2]
[421998146,1778436634000,-500.0,0.00013698,2]
[421998147,1778436634000,-738.40101041,0.00013862,2]
[421998145,1778436634000,-500.0,0.00013698,2]
[421998144,1778436634000,-299.99,0.00013698,2]
[421998143,1778436634000,-8305.03,0.00013698,2]
[421998152,1778436634000,-500.0,0.00014136,2]
[421998139,1778436634000,-507.19084567,0.00013698,2]
[421998140,1778436634000,-500.0,0.00013698,2]
[421998189,1778436638000,-2721.29853995,0.00013535,2]
[421998190,1778436638000,-500.0,0.00013698,2]
[421998191,1778436638000,-22518.28559366,0.00014237,2]
[421998192,1778436639000,-2034.28158326,0.00014237,2]
[421998407,1778436641000,-9999.99,0.00014587,2]
[421998396,1778436641000,-500.0,0.0001441,2]
[421998398,1778436641000,-500.0,0.0001441,2]
[421998409,1778436641000,-7840.61,0.00014587,2]
[421998390,1778436641000,-500.0,0.0001441,2]
[421998400,1778436641000,-500.0,0.0001441,2]
[421998402,1778436641000,-500.0,0.0001441,2]
[421998405,1778436641000,-258.83613445,0.0001441,2]
[421998425,1778436641000,-300.0,0.00014846,2]
[421998415,1778436641000,-1003.41921174,0.00014821,2]
[421998417,1778436641000,-239.15,0.00014821,2]
[421998413,1778436641000,-818.43,0.00014657,2]
[421998419,1778436641000,-9999.99,0.00014821,2]
[421998421,1778436641000,-1195.04,0.00014821,2]
[421998431,1778436641000,-193.0,0.00014846,2]
[421998427,1778436641000,-250.0,0.00014846,2]
[421998394,1778436641000,-500.0,0.0001441,2]
[421998411,1778436641000,-255.0,0.00014616,2]
[421998392,1778436641000,-500.0,0.0001441,2]
[421998359,1778436641000,-500.0,0.0001441,2]
[421998377,1778436641000,-500.0,0.0001441,2]
[421998346,1778436641000,-4141.0172988,0.00013528,2]
[421998357,1778436641000,-818.43,0.00014316,2]
[421998347,1778436641000,-500.0,0.00013698,2]
[421998349,1778436641000,-138662.83530863,0.00014237,2]
[421998429,1778436641000,-605.015601,0.00014846,2]
[421998361,1778436641000,-500.0,0.0001441,2]
[421998351,1778436641000,-884.6813076,0.00014241,2]
[421998353,1778436641000,-3718.3107233,0.00014241,2]
[421998388,1778436641000,-500.0,0.0001441,2]
[421998355,1778436641000,-500.0,0.00014273,2]
[421998368,1778436641000,-500.0,0.0001441,2]
[421998370,1778436641000,-500.0,0.0001441,2]
[421998379,1778436641000,-500.0,0.0001441,2]
[421998372,1778436641000,-500.0,0.0001441,2]
[421998383,1778436641000,-500.0,0.0001441,2]
[421998385,1778436641000,-500.0,0.0001441,2]
[421998375,1778436641000,-500.0,0.0001441,2]
[421998381,1778436641000,-500.0,0.0001441,2]
[421998363,1778436641000,-500.0,0.0001441,2]
[421998423,1778436641000,-300.0,0.00014846,2]
[421998366,1778436641000,-500.0,0.0001441,2]
[421998438,1778436641000,-167.16623666,0.00014846,2]
[421998483,1778436641000,-500.0,0.00014999,2]
[421998496,1778436641000,-500.0,0.00014999,2]
[421998498,1778436641000,-500.0,0.00014999,2]
[421998500,1778436641000,-500.0,0.00014999,2]
[421998490,1778436641000,-500.0,0.00014999,2]
[421998485,1778436641000,-500.0,0.00014999,2]
[421998515,1778436641000,-400.0,0.00015,2]
[421998486,1778436641000,-500.0,0.00014999,2]
[421998494,1778436641000,-500.0,0.00014999,2]
[421998488,1778436641000,-500.0,0.00014999,2]
[421998504,1778436641000,-135119.38909734,0.00015,2]
[421998518,1778436641000,-20410.93765589,0.00015,2]
[421998506,1778436641000,-243.04030504,0.00015,2]
[421998520,1778436641000,-276.92567944,0.00015,2]
[421998508,1778436641000,-200.0,0.00015,2]
[421998510,1778436641000,-1956569.83691064,0.00015,2]
[421998512,1778436641000,-365.54270048,0.00015,2]
[421998434,1778436641000,-500.0,0.00014846,2]
[421998502,1778436641000,-500.0,0.00014999,2]
[421998492,1778436641000,-500.0,0.00014999,2]
[421998481,1778436641000,-818.43,0.00014998,2]
[421998457,1778436641000,-1505.04463,0.000149,2]
[421998442,1778436641000,-500.0,0.00014873,2]
[421998446,1778436641000,-4999.99,0.000149,2]
[421998436,1778436641000,-250.0,0.00014846,2]
[421998444,1778436641000,-244.29598541,0.000149,2]
[421998448,1778436641000,-5000.0,0.000149,2]
[421998450,1778436641000,-1505.04463,0.000149,2]
[421998454,1778436641000,-1505.04463,0.000149,2]
[421998479,1778436641000,-152.0,0.00014995,2]
[421998440,1778436641000,-1680.0,0.00014846,2]
[421998461,1778436641000,-5058.19742284,0.000149,2]
[421998465,1778436641000,-1505.04463,0.0001491,2]
[421998467,1778436641000,-151.08590078,0.00014925,2]
[421998459,1778436641000,-1505.04463,0.000149,2]
[421998469,1778436641000,-12133.02664988,0.00014925,2]
[421998473,1778436641000,-551.37201899,0.00014973,2]
[421998477,1778436641000,-2080.17592889,0.00014991,2]
[421998475,1778436641000,-156.25362249,0.0001499,2]
[421998471,1778436641000,-500.32951752,0.00014973,2]
[421998463,1778436641000,-1505.04463,0.0001491,2]
[421998797,1778436646000,-1505.51866,0.00015,2]
[421998799,1778436646000,-4374.04848253,0.00015,2]
[421998798,1778436646000,-7974.40064715,0.00015,2]
[421998800,1778436646000,-56439.11395084,0.00015,2]
[421998805,1778436646000,-2874.07091588,0.00015,2]
[421998802,1778436646000,-662.47444819,0.00015,2]
[421998803,1778436646000,-3221.37125775,0.00015,2]
[421998804,1778436646000,-709.36443192,0.00015,2]
[421998806,1778436646000,-300898.983,0.00015,2]
[421998801,1778436646000,-6000.00001399,0.00015,2]
[421998815,1778436666000,1597.18437826,0.00027397,120]
[421998820,1778437146000,202.7591375,0.00027397,120]
[421998827,1778437565000,152.0,0.00024754,120]
[421998829,1778437633000,-449.45363236,0.00013397,2]
[421998828,1778437633000,-211.23,0.00013396,2]
[421998830,1778437636000,-50.54636764,0.00013397,2]
[421998831,1778437636000,-1200.0,0.00013496,2]
[421998832,1778437636000,-85.20619815,0.00013496,2]
[421998849,1778437831000,-499.99,0.00013638,2]
[421998857,1778437831000,-166.66,0.00013973,2]
[421998856,1778437831000,-467.01,0.0001395,2]
[421998853,1778437831000,-200.0,0.00013704,2]
[421998852,1778437831000,-200.0,0.00013699,2]
[421998850,1778437831000,-850.4,0.00013638,2]
[421998854,1778437831000,-166.66,0.00013836,2]
[421998855,1778437831000,-150.0,0.00013949,2]
[421998851,1778437831000,-166.66,0.00013699,2]
[421998848,1778437831000,-445.38,0.00013638,2]
[421998840,1778437831000,-1200.0,0.00013234,2]
[421998847,1778437831000,-150.0,0.00013615,2]
[421998844,1778437831000,-2286.127004,0.00013428,2]
[421998845,1778437831000,-34833.705617,0.00013497,2]
[421998860,1778437831000,-510354.4963,0.00014037,2]
[421998843,1778437831000,-215.0,0.00013427,2]
[421998842,1778437831000,-500.0,0.00013296,2]
[421998839,1778437831000,-197.61,0.00012869,2]
[421998841,1778437831000,-2000.0,0.00013235,2]
[421998838,1778437831000,-2114.21,0.00012757,2]
[421998837,1778437831000,-859.98,0.00012757,2]
[421998846,1778437831000,-157.77,0.00013592,2]
[421998858,1778437831000,-500.0,0.00013997,2]
[421998877,1778437831000,-200.0,0.0001488,2]
[421998861,1778437831000,-6075.176,0.00014037,2]
[421998859,1778437831000,-250.0,0.00014,2]
[421998883,1778437831000,-500.0,0.00014999,2]
[421998882,1778437831000,-155.0,0.00014998,2]
[421998884,1778437831000,-117.33085502,0.00014999,2]
[421998880,1778437831000,-2500.0,0.000149,2]
[421998881,1778437831000,-152.0,0.00014991,2]
[421998879,1778437831000,-4169.63627176,0.00014899,2]
[421998876,1778437831000,-1014.7910572,0.00014769,2]
[421998875,1778437831000,-17690.2983865,0.00014769,2]
[421998872,1778437831000,-1680.0,0.00014557,2]
[421998869,1778437831000,-397.84647269,0.0001441,2]
[421998878,1778437831000,-2000.0,0.00014889,2]
[421998870,1778437831000,-1134.60857358,0.0001441,2]
[421998873,1778437831000,-828.76692799,0.00014676,2]
[421998866,1778437831000,-43246.8676,0.00014137,2]
[421998863,1778437831000,-1577.09,0.00014055,2]
[421998864,1778437831000,-166.66,0.0001411,2]
[421998865,1778437831000,-2080.17592889,0.00014128,2]
[421998862,1778437831000,-150.0,0.00014055,2]
[421998868,1778437831000,-166.66,0.00014384,2]
[421998871,1778437831000,-769.92911676,0.0001441,2]
[421998874,1778437831000,-160.22,0.00014757,2]
[421998867,1778437831000,-166.66,0.00014247,2]
[421998911,1778437841000,-500.0,0.00014036,2]
[421998925,1778437841000,-500.0,0.00014036,2]
[421998920,1778437841000,-500.0,0.00014036,2]
[421998922,1778437841000,-500.0,0.00014036,2]
[421998921,1778437841000,-500.0,0.00014036,2]
[421998919,1778437841000,-500.0,0.00014036,2]
[421998918,1778437841000,-500.0,0.00014036,2]
[421998917,1778437841000,-500.0,0.00014036,2]
[421998915,1778437841000,-500.0,0.00014036,2]
[421998916,1778437841000,-500.0,0.00014036,2]
[421998913,1778437841000,-500.0,0.00014036,2]
[421998910,1778437841000,-324.64631967,0.00014036,2]
[421998924,1778437841000,-500.0,0.00014036,2]
[421998912,1778437841000,-500.0,0.00014036,2]
[421998908,1778437841000,-399.24280221,0.00014036,2]
[421998909,1778437841000,-175.35368033,0.00014036,2]
[421998906,1778437841000,-398.23705892,0.00014036,2]
[421998907,1778437841000,-32.00351886,0.00014036,2]
[421998905,1778437841000,-69.75942222,0.00014036,2]
[421998902,1778437841000,-138.21934038,0.00014036,2]
[421998904,1778437841000,-229.77026612,0.00014036,2]
[421998903,1778437841000,-589.35097128,0.00014036,2]
[421998900,1778437841000,-398.1854,0.00013296,2]
[421998901,1778437841000,-46.90249201,0.00014036,2]
[421998914,1778437841000,-500.0,0.00014036,2]
[421998926,1778437841000,-500.0,0.00014036,2]
[421998954,1778437841000,-500.0,0.00014036,2]
[421998927,1778437841000,-500.0,0.00014036,2]
[421998923,1778437841000,-500.0,0.00014036,2]
[421998955,1778437841000,-217.75493029,0.00014036,2]
[421998953,1778437841000,-500.0,0.00014036,2]
[421998950,1778437841000,-500.0,0.00014036,2]
[421998951,1778437841000,-500.0,0.00014036,2]
[421998952,1778437841000,-500.0,0.00014036,2]
[421998945,1778437841000,-500.0,0.00014036,2]
[421998947,1778437841000,-500.0,0.00014036,2]
[421998943,1778437841000,-500.0,0.00014036,2]
[421998940,1778437841000,-500.0,0.00014036,2]
[421998942,1778437841000,-500.0,0.00014036,2]
[421998941,1778437841000,-500.0,0.00014036,2]
[421998948,1778437841000,-500.0,0.00014036,2]
[421998938,1778437841000,-500.0,0.00014036,2]
[421998937,1778437841000,-500.0,0.00014036,2]
[421998928,1778437841000,-500.0,0.00014036,2]
[421998930,1778437841000,-500.0,0.00014036,2]
[421998931,1778437841000,-500.0,0.00014036,2]
[421998932,1778437841000,-500.0,0.00014036,2]
[421998929,1778437841000,-500.0,0.00014036,2]
[421998936,1778437841000,-500.0,0.00014036,2]
[421998935,1778437841000,-500.0,0.00014036,2]
[421998933,1778437841000,-500.0,0.00014036,2]
[421998939,1778437841000,-500.0,0.00014036,2]
[421998934,1778437841000,-500.0,0.00014036,2]
[421998975,1778437842000,-500.0,0.00014999,2]
[421998978,1778437842000,-500.0,0.00014999,2]
[421998974,1778437842000,-500.0,0.00014999,2]
[421998976,1778437842000,-500.0,0.00014999,2]
[421998979,1778437842000,-500.0,0.00014999,2]
[421998987,1778437842000,-500.0,0.00014999,2]
[421998977,1778437842000,-500.0,0.00014999,2]
[421998981,1778437842000,-500.0,0.00014999,2]
[421998983,1778437842000,-501.07586597,0.00014999,2]
[421998985,1778437842000,-500.0,0.00014999,2]
[421998986,1778437842000,-500.06892776,0.00014999,2]
[421998971,1778437842000,-496.88754965,0.00014999,2]
[421998980,1778437842000,-500.0,0.00014999,2]
[421998970,1778437842000,-500.0,0.00014999,2]
[421998960,1778437842000,-500.0,0.00014036,2]
[421998972,1778437842000,-500.0,0.00014999,2]
[421998968,1778437842000,-1836.40953328,0.0001441,2]
[421998969,1778437842000,-382.66914498,0.00014999,2]
[421998967,1778437842000,-625.98980247,0.00014036,2]
[421998964,1778437842000,-500.0,0.00014036,2]
[421998963,1778437842000,-500.0,0.00014036,2]
[421998966,1778437842000,-500.0,0.00014036,2]
[421998961,1778437842000,-500.0,0.00014036,2]
[421998962,1778437842000,-500.0,0.00014036,2]
[421998959,1778437842000,-500.0,0.00014036,2]
[421998989,1778437842000,-500.0,0.00014999,2]
[421998958,1778437842000,-500.0,0.00014036,2]
[421998956,1778437842000,-282.24506971,0.00014036,2]
[421998957,1778437842000,-500.0,0.00014036,2]
[421998973,1778437842000,-500.0,0.00014999,2]
[421998988,1778437842000,-167.0,0.00014999,2]
[421998965,1778437842000,-500.0,0.00014036,2]
[421998991,1778437842000,-25739.58413361,0.00015,2]
[421998990,1778437842000,-59762.65410622,0.00015,2]
[421999028,1778437842000,-1737.36,0.00016652,2]
[421999027,1778437842000,-1000.0,0.000166,2]
[421999026,1778437842000,-1000.0,0.000166,2]
[421999030,1778437842000,-500.0,0.00016999,7]
[421999029,1778437842000,-193.57,0.00016712,2]
[421999024,1778437842000,-155.0,0.00016498,2]
[421999025,1778437842000,-2000.0,0.00016543,2]
[421999021,1778437842000,-433.0,0.00016265,2]
[421999022,1778437842000,-152.0,0.00016346,2]
[421999023,1778437842000,-300.0,0.00016438,2]
[421999019,1778437842000,-378.01261989,0.000162,2]
[421999018,1778437842000,-152.0,0.00016113,2]
[421999017,1778437842000,-378.01261989,0.000161,2]
[421999016,1778437842000,-648.0,0.00016013,2]
[421999020,1778437842000,-152.0,0.00016264,2]
[421999012,1778437842000,-152.0,0.00015858,2]
[421999013,1778437842000,-360.34,0.00015868,2]
[421999004,1778437842000,-3130.82667113,0.00015,2]
[421999003,1778437842000,-2074.99470707,0.00015,2]
[421999002,1778437842000,-77720.41363789,0.00015,2]
[421999005,1778437842000,-427.54002325,0.00015,2]
[421999006,1778437842000,-1247.58051551,0.00015,2]
[421999007,1778437842000,-391.79167657,0.00015,2]
[421999008,1778437842000,-330.0,0.00015014,3]
[421998992,1778437842000,-393.51575662,0.00015,2]
[421999010,1778437842000,-350.0,0.00015694,2]
[421999011,1778437842000,-157.77,0.00015857,2]
[421999014,1778437842000,-300.0,0.00016,2]
[421999015,1778437842000,-378.01261989,0.00016,2]
[421999009,1778437842000,-255.0,0.00015065,2]
[421999075,1778437843000,-500.0,0.00018773,2]
[421999078,1778437843000,-500.0,0.00018773,2]
[421999074,1778437843000,-500.0,0.00018773,2]
[421999071,1778437843000,-505.53144365,0.00018722,7]
[421999073,1778437843000,-500.0,0.00018773,2]
[421999066,1778437843000,-160.22,0.00018446,2]
[421999070,1778437843000,-880.86,0.0001872,2]
[421999067,1778437843000,-297.94099151,0.000185,2]
[421999069,1778437843000,-297.94099151,0.000187,2]
[421999068,1778437843000,-150.0,0.00018589,2]
[421999065,1778437843000,-208.157269,0.00018424,2]
[421999076,1778437843000,-184.85930641,0.00018773,2]
[421999072,1778437843000,-374.65026311,0.00018723,2]
[421999077,1778437843000,-500.0,0.00018773,2]
[421999094,1778437843000,-1252.0,0.00018971,2]
[421999081,1778437843000,-500.0,0.00018773,2]
[421999083,1778437843000,-500.0,0.00018773,2]
[421999080,1778437843000,-500.0,0.00018773,2]
[421999079,1778437843000,-500.0,0.00018773,2]
[421999084,1778437843000,-500.0,0.00018773,2]
[421999086,1778437843000,-383.03264827,0.00018773,2]
[421999085,1778437843000,-500.0,0.00018773,2]
[421999087,1778437843000,-500.0,0.00018773,2]
[421999089,1778437843000,-151.0,0.00018797,2]
[421999090,1778437843000,-500.0,0.00018799,2]
[421999092,1778437843000,-297.94099151,0.000188,2]
[421999095,1778437843000,-158.0,0.00019,2]
[421999096,1778437843000,-318.0,0.00019,2]
[421999064,1778437843000,-226.647048,0.00018424,7]
[421999082,1778437843000,-500.0,0.00018773,2]
[421999063,1778437843000,-297.94099151,0.000183,2]
[421999047,1778437843000,-157.6032615,0.00017865,2]
[421999062,1778437843000,-2000.0,0.00018198,2]
[421999091,1778437843000,-86127.94419281,0.000188,2]
[421999031,1778437843000,-500.0,0.00016999,7]
[421999034,1778437843000,-500.0,0.00016999,7]
[421999033,1778437843000,-500.0,0.00016999,7]
[421999035,1778437843000,-422.03,0.00016999,7]
[421999032,1778437843000,-500.0,0.00016999,7]
[421999036,1778437843000,-500.0,0.00016999,7]
[421999037,1778437843000,-500.0,0.00016999,7]
[421999039,1778437843000,-168.87,0.00017337,2]
[421999040,1778437843000,-859.98,0.00017572,2]
[421999038,1778437843000,-4140.46419191,0.00017243,2]
[421999041,1778437843000,-2114.21,0.00017572,2]
[421999043,1778437843000,-360.34,0.00017631,2]
[421999042,1778437843000,-736.0,0.00017576,2]
[421999059,1778437843000,-157.77,0.00018122,2]
[421999045,1778437843000,-501.24,0.000178,2]
[421999048,1778437843000,-190.0,0.00017959,2]
[421999046,1778437843000,-190.0,0.00017837,2]
[421999050,1778437843000,-350.0,0.00018,2]
[421999049,1778437843000,-155.0,0.00017998,2]
[421999051,1778437843000,-1000.0,0.00018,2]
[421999056,1778437843000,-208.10422263,0.00018104,2]
[421999052,1778437843000,-314.0,0.00018,2]
[421999055,1778437843000,-297.94099151,0.000181,2]
[421999053,1778437843000,-308.0,0.00018,2]
[421999054,1778437843000,-254.0,0.00018045,2]
[421999057,1778437843000,-160.0,0.00018104,2]
[421999058,1778437843000,-214.7734975,0.00018104,2]
[421999061,1778437843000,-500.0,0.00018175,2]
[421999060,1778437843000,-502.7733834,0.00018175,2]
[421999044,1778437843000,-4169.63627171,0.00017677,2]
[421999098,1778437843000,-501.88076263,0.00019321,2]
[421999088,1778437843000,-408.62052772,0.00018773,2]
[421999100,1778437843000,-902.7578528,0.00019321,2]
[421999135,1778437843000,-4911.45,0.00020548,2]
[421999136,1778437843000,-4911.45,0.00020548,2]
[421999134,1778437843000,-4988.69,0.00020548,2]
[421999133,1778437843000,-508.03542635,0.00020547,2]
[421999137,1778437843000,-4911.45,0.00020548,2]
[421999138,1778437843000,-4911.45,0.00020548,2]
[421999139,1778437843000,-4911.45,0.00020548,2]
[421999142,1778437843000,-4911.45,0.00020548,2]
[421999141,1778437843000,-4911.45,0.00020548,2]
[421999140,1778437843000,-4911.45,0.00020548,2]
[421999143,1778437843000,-4911.45,0.00020548,2]
[421999144,1778437843000,-4911.45,0.00020548,2]
[421999145,1778437843000,-4911.45,0.00020548,2]
[421999150,1778437843000,-4911.45,0.00020548,2]
[421999132,1778437843000,-500.0,0.00020547,2]
[421999151,1778437843000,-4911.45,0.00020548,2]
[421999146,1778437843000,-4911.45,0.00020548,2]
[421999147,1778437843000,-4911.45,0.00020548,2]
[421999149,1778437843000,-4911.45,0.00020548,2]
[421999152,1778437843000,-4911.45,0.00020548,2]
[421999155,1778437843000,-4911.45,0.00020548,2]
[421999154,1778437843000,-4911.45,0.00020548,2]
[421999153,1778437843000,-4911.45,0.00020548,2]
[421999156,1778437843000,-4911.45,0.00020548,2]
[421999157,1778437843000,-2989.11,0.00020548,2]
[421999159,1778437843000,-500.0,0.00020573,2]
[421999163,1778437843000,-500.0,0.00020573,2]
[421999158,1778437843000,-150.0,0.00020573,2]
[421999162,1778437843000,-592.70795494,0.00020573,2]
[421999099,1778437843000,-1000.0,0.00019321,2]
[421999148,1778437843000,-4911.45,0.00020548,2]
[421999131,1778437843000,-500.0,0.00020547,2]
[421999161,1778437843000,-500.0,0.00020573,2]
[421999127,1778437843000,-536.57156268,0.00020547,2]
[421999130,1778437843000,-500.0,0.00020547,2]
[421999097,1778437843000,-154.0,0.00019,2]
[421999102,1778437843000,-501.41217628,0.00019321,2]
[421999103,1778437843000,-500.8048337,0.00019321,2]
[421999105,1778437843000,-501.50619138,0.00019321,2]
[421999107,1778437843000,-1000.0,0.00019321,2]
[421999106,1778437843000,-1000.0,0.00019321,2]
[421999160,1778437843000,-500.0,0.00020573,2]
[421999108,1778437843000,-262.44765209,0.0001935,21]
[421999104,1778437843000,-500.0,0.00019321,2]
[421999110,1778437843000,-467.01,0.00019531,2]
[421999109,1778437843000,-360.34,0.00019394,2]
[421999113,1778437843000,-500.0,0.00019846,2]
[421999111,1778437843000,-500.0,0.00019846,2]
[421999114,1778437843000,-2000.0,0.00019852,2]
[421999101,1778437843000,-502.17084401,0.00019321,2]
[421999112,1778437843000,-500.0,0.00019846,2]
[421999115,1778437843000,-1500.0,0.00019868,2]
[421999126,1778437843000,-500.0,0.00020547,2]
[421999128,1778437843000,-500.0,0.00020547,2]
[421999124,1778437843000,-1902.0,0.00020492,2]
[421999121,1778437843000,-157.77,0.00020388,2]
[421999118,1778437843000,-400.0,0.0002,2]
[421999125,1778437843000,-500.0,0.00020547,2]
[421999122,1778437843000,-1520.43062155,0.00020416,2]
[421999116,1778437843000,-1500.0,0.00019868,2]
[421999117,1778437843000,-150.0,0.00019979,2]
[421999119,1778437843000,-318.0,0.0002,2]
[421999129,1778437843000,-500.0,0.00020547,2]
[421999120,1778437843000,-154.0,0.0002,2]
[421999123,1778437843000,-4169.63627171,0.00020455,2]
[421999208,1778437844000,-1000.0,0.00022034,2]
[421999201,1778437844000,-155.0,0.00022,2]
[421999200,1778437844000,-318.0,0.00022,2]
[421999199,1778437844000,-450.0,0.00022,2]
[421999198,1778437844000,-500.0,0.00021927,2]
[421999203,1778437844000,-1000.0,0.00022034,2]
[421999202,1778437844000,-1000.0,0.00022034,2]
[421999204,1778437844000,-1000.0,0.00022034,2]
[421999205,1778437844000,-1000.0,0.00022034,2]
[421999206,1778437844000,-502.01972561,0.00022034,2]
[421999196,1778437844000,-1000.0,0.00021915,2]
[421999197,1778437844000,-5000.0,0.00021918,2]
[421999213,1778437844000,-350.0,0.00022235,2]
[421999207,1778437844000,-570.54896851,0.00022034,2]
[421999210,1778437844000,-500.0,0.00022216,2]
[421999209,1778437844000,-160.22,0.00022136,2]
[421999215,1778437844000,-504.61625319,0.00022582,2]
[421999214,1778437844000,-1500.0,0.00022463,2]
[421999212,1778437844000,-1000.0,0.00022216,2]
[421999217,1778437844000,-1500.0,0.00022582,2]
[421999216,1778437844000,-613.74500961,0.00022582,2]
[421999220,1778437844000,-880.86,0.00022691,2]
[421999219,1778437844000,-1500.0,0.00022582,2]
[421999218,1778437844000,-1500.0,0.00022582,2]
[421999195,1778437844000,-250.0,0.00021687,2]
[421999222,1778437844000,-350.0,0.00022783,2]
[421999211,1778437844000,-452.47332856,0.00022216,2]
[421999194,1778437844000,-1003.005123,0.00021687,2]
[421999176,1778437844000,-150.0,0.00021139,2]
[421999193,1778437844000,-500.0,0.00021687,2]
[421999221,1778437844000,-157.60326151,0.00022781,2]
[421999165,1778437844000,-154.0,0.00021,2]
[421999164,1778437844000,-318.0,0.00021,2]
[421999166,1778437844000,-250.0,0.00021121,2]
[421999168,1778437844000,-1000.0,0.00021121,2]
[421999167,1778437844000,-1000.0,0.00021121,2]
[421999169,1778437844000,-295.50448896,0.00021121,2]
[421999170,1778437844000,-500.0,0.00021121,2]
[421999171,1778437844000,-500.0,0.00021139,2]
[421999173,1778437844000,-500.0,0.00021139,2]
[421999174,1778437844000,-500.0,0.00021139,2]
[421999172,1778437844000,-500.0,0.00021139,2]
[421999177,1778437844000,-360.34,0.00021157,2]
[421999178,1778437844000,-500.0,0.00021367,2]
[421999179,1778437844000,-500.0,0.00021486,2]
[421999180,1778437844000,-500.0,0.00021486,2]
[421999182,1778437844000,-500.0,0.00021486,2]
[421999181,1778437844000,-500.0,0.00021486,2]
[421999183,1778437844000,-500.0,0.00021486,2]
[421999185,1778437844000,-299.17581941,0.00021486,2]
[421999184,1778437844000,-500.0,0.00021486,2]
[421999188,1778437844000,-1505.51281899,0.00021668,2]
[421999186,1778437844000,-500.0,0.00021486,2]
[421999189,1778437844000,-1500.0,0.00021668,2]
[421999187,1778437844000,-350.0,0.00021668,2]
[421999190,1778437844000,-755.32796414,0.00021687,2]
[421999192,1778437844000,-502.79068067,0.00021687,2]
[421999191,1778437844000,-987.5614172,0.00021687,2]
[421999223,1778437844000,-1269.0,0.00022964,2]
[421999175,1778437844000,-500.0,0.00021139,2]
[421999228,1778437844000,-500.0,0.0002313,2]
[421999257,1778437844000,-251.14,0.00025008,2]
[421999256,1778437844000,-156.72222787,0.00025,7]
[421999259,1778437844000,-158.81,0.00025342,7]
[421999260,1778437844000,-159.9,0.00025342,7]
[421999262,1778437844000,-1267.0,0.00025964,2]
[421999261,1778437844000,-160.39,0.00025342,7]
[421999264,1778437844000,-178.22,0.00026054,2]
[421999263,1778437844000,-4169.63627171,0.00026011,2]